bitfinex-derivatives/quotes_SOLF0:USTF0_20250520
["timestamp","ask_amount","ask_price","bid_price","bid_amount"]
[1747750825156,5.55139559,165.7,165.69,6.0335]
[1747750825559,7.37923151,165.73,165.67,73.3513]
[1747750827262,7.37923151,165.73,165.72,6.0324]
[1747750827562,7.37923151,165.73,165.71,0.04085081]
[1747750827858,6.031,165.76,165.71,6.07325081]
[1747750828363,6.031,165.76,165.72,6.0323]
[1747750828855,75.2807,165.82,165.71,0.04085081]
[1747750828856,6.0304,165.78,165.71,69.48085081]
[1747750829162,85.45958524,165.82,165.74,6.0314]
[1747750829356,6.0305,165.78,165.76,0.04600506]
[1747750830062,75.2807,165.82,165.76,0.04600506]
[1747750830253,73.3239,165.82,165.76,0.04600506]
[1747750830953,79.3528,165.82,165.77,6.0305]
[1747750831158,79.3528,165.82,165.76,0.04600506]
[1747750831359,69.44,165.82,165.76,0.04600506]
[1747750831557,10.17888524,165.84,165.76,0.04600506]
[1747750832262,69.42,165.86,165.76,0.04600506]
[1747750832464,69.42,165.86,165.79,0.04361416]
[1747750832855,6.0281,165.84,165.79,6.07311416]
[1747750833056,69.42,165.86,165.79,6.07311416]
[1747750833469,69.42,165.86,165.79,0.04361416]
[1747750833655,10.17888524,165.84,165.79,0.04361416]
[1747750834050,6.0295,165.8,165.79,0.04361416]
[1747750835063,6.0295,165.8,165.71,521.46]
[1747750835064,79.57888524,165.82,165.71,521.46]
[1747750835366,79.57888524,165.82,165.76,6.0306]
[1747750835555,6.0298,165.8,165.76,6.0306]
[1747750835864,79.57888524,165.82,165.76,6.0306]
[1747750836061,6.0297,165.8,165.77,0.04553317]
[1747750836261,0.03866431,165.81,165.77,0.04553317]
[1747750836654,6.06806431,165.81,165.77,0.04553317]
[1747750836851,0.03866431,165.81,165.8,6.0295]
[1747750837057,0.03866431,165.81,165.77,0.04553317]
[1747750837461,0.03866431,165.81,165.79,6.0296]
[1747750837666,0.03866431,165.81,165.77,0.04553317]
[1747750838165,0.03866431,165.81,165.8,6.0295]
[1747750840665,69.24,165.91,165.78,69.26]
[1747750841660,69.24,165.91,165.83,0.04367468]
[1747750841967,6.0275,165.86,165.83,0.04367468]
[1747750842567,69.24,165.91,165.84,6.0279]
[1747750842568,6.0267,165.88,165.84,6.0279]
[1747750842762,6.0267,165.88,165.83,0.04367468]
[1747750843566,6.0267,165.88,165.84,6.028]
[1747750843770,6.027,165.87,165.83,0.04367468]
[1747750844166,69.24,165.92,165.84,6.0278]
[1747750844371,6.0269,165.88,165.86,0.0462132]
[1747750844963,6.027,165.87,165.86,0.0462132]
[1747750845362,69.24,165.92,165.86,0.0462132]
[1747750845566,6.0268,165.88,165.86,0.0462132]
[1747750846369,69.24,165.92,165.86,0.0462132]
[1747750847667,6.027,165.87,165.86,0.0462132]
[1747750848471,6.0287,165.83,165.78,69.22]
[1747750848657,2.0095,165.86,165.78,69.22]
[1747750848862,6.0284,165.84,165.78,69.22]
[1747750849363,0.04224307,165.83,165.82,6.0285]
[1747750852759,0.04224307,165.83,165.82,75.2485]
[1747750858672,0.04224307,165.83,165.82,79.2451]
[1747750858879,4.307e-05,165.83,165.82,79.2451]
[1747750859082,69.22,165.98,165.82,477.2566]
[1747750859276,69.22,165.98,165.83,2.0789]
[1747750859471,6.0243,165.95,165.83,2.0789]
[1747750859676,80.55073779,166.01,165.89,10.12995883]
[1747750859978,80.55073779,166.01,165.93,0.04565252]
[1747750861077,6.0228,165.99,165.93,0.04565252]
[1747750861679,6.023,165.98,165.93,0.04565252]
[1747750861879,75.2624,166.02,165.93,0.04565252]
[1747750862185,6.0241,165.95,165.93,0.04565252]
[1747750862379,75.2624,166.02,165.93,0.04565252]
[1747750862782,75.2624,166.02,165.93,6.07035252]
[1747750863081,16.20710547,166.01,165.93,0.04565252]
[1747750863278,6.0258,165.91,165.86,69.2]
[1747750863481,69.2,165.92,165.82,71.265]
[1747750863683,2.0471,165.91,165.82,69.2]
[1747750864384,0.04533998,165.88,165.85,0.04145134]
[1747750864971,6.0273,165.87,165.85,0.04145134]
[1747750865171,0.04533998,165.88,165.85,0.04145134]
[1747750865582,6.0272,165.87,165.85,0.04145134]
[1747750865773,0.04533998,165.88,165.85,0.04145134]
[1747750866183,0.04533998,165.88,165.87,6.027]
[1747750868783,27.33608191,166.0,165.86,69.2]
[1747750868983,84.31317644,166.0,165.87,3.9613]
[1747750869495,13.40253151,165.98,165.87,3.9613]
[1747750869688,6.0233,165.98,165.87,3.9613]
[1747750869987,6.0228,165.99,165.91,0.04617115]
[1747750870187,6.0228,165.99,165.91,69.10617115]
[1747750870579,73.1842,166.0,165.91,69.10617115]
[1747750870990,9.30513151,166.03,165.91,69.10617115]
[1747750871289,69.06,166.02,165.95,0.04049143]
[1747750872589,6.0226,165.99,165.96,6.0237]
[1747750872892,6.0226,165.99,165.95,0.04049143]
[1747750873191,69.06,166.02,165.95,0.04049143]
[1747750873789,6.0237,165.96,165.95,0.04049143]
[1747750875495,69.06,166.02,165.95,0.04049143]
[1747750876803,591.8918,166.04,165.95,0.04049143]
[1747750877193,6.023,165.98,165.95,6.06439143]
[1747750877397,591.8918,166.04,165.95,0.04049143]
[1747750877894,6.0228,165.99,165.96,6.0237]
[1747750878102,6.0228,165.99,165.96,6.06393415]
[1747750878603,6.0231,165.98,165.96,6.06393415]
[1747750879005,591.8918,166.04,165.96,0.04023415]
[1747750880500,71.0318,166.04,165.96,0.04023415]
[1747750881005,6.0216,166.02,166.0,6.0223]
[1747750881301,69.06,166.04,166.0,6.0223]
[1747750881504,6.0214,166.03,166.0,6.0223]
[1747750881703,69.06,166.04,165.99,0.03980096]
[1747750881892,6.021,166.04,165.99,0.03980096]
[1747750882092,6.021,166.04,166.01,6.0217]
[1747750882294,7.37923151,166.07,165.99,69.07980096]
[1747750883499,1.9302,166.08,165.99,69.07980096]
[1747750885308,1.9302,166.08,166.0,6.022]
[1747750885501,1.9302,166.08,166.02,0.03933267]
[1747750886007,6.0212,166.03,166.02,0.03933267]
[1747750886406,69.04,166.08,166.02,6.06083267]
[1747750886907,5.58703568,166.09,166.02,0.03933267]
[1747750887300,5.58703568,166.09,166.03,69.04]
[1747750888097,6.0194,166.08,166.05,6.0202]
[1747750888310,5.58703568,166.09,166.05,0.04118519]
[1747750889008,520.66,166.12,166.05,0.04118519]
[1747750889912,6.0201,166.06,166.05,0.04118519]
[1747750890308,520.66,166.12,166.05,0.04118519]
[1747750890510,6.0201,166.06,166.05,0.04118519]
[1747750891101,69.02,166.09,166.05,0.04118519]
[1747750891508,6.0199,166.07,166.05,0.04118519]
[1747750891708,69.02,166.09,166.05,0.04118519]
[1747750892004,6.0194,166.08,166.05,6.06138519]
[1747750892206,70.9305,166.13,166.05,0.04118519]
[1747750892397,1.9105,166.13,166.05,0.04118519]
[1747750892602,6.0184,166.11,166.07,6.0196]
[1747750892909,1.9105,166.13,166.07,0.04015647]
[1747750893211,6.0193,166.08,166.07,0.04015647]
[1747750893608,69.02,166.12,166.07,0.04015647]
[1747750894510,6.0189,166.1,166.07,0.04015647]
[1747750894910,6.019,166.09,166.07,0.04015647]
[1747750895311,69.0,166.12,166.07,0.04015647]
[1747750896115,6.0193,166.08,166.07,0.04015647]
[1747750898413,75.0193,166.08,166.07,0.04015647]
[1747750898614,69.0,166.08,165.97,2.0881]
[1747750898920,2.0389,166.07,165.96,75.0236]
[1747750899111,6.0223,166.0,165.92,69.99508933]
[1747750899308,68.9,166.02,165.92,69.99508933]
[1747750899513,0.04522638,165.99,165.96,0.04174758]
[1747750899717,0.04319637,165.99,165.96,0.04091862]
[1747750900219,0.04319637,165.99,165.98,6.023]
[1747750901220,8.0588,166.07,165.96,68.94091862]
[1747750901415,8.0588,166.07,165.96,68.9]
[1747750901621,2.0389,166.07,166.01,6.0217]
[1747750901818,2.0389,166.07,165.96,68.9]
[1747750902118,2.0389,166.07,166.0,0.04112998]
[1747750902319,6.0205,166.05,166.02,6.0215]
[1747750902518,2.0389,166.07,166.0,0.04112998]
[1747750904016,6.0219,166.01,166.0,0.04112998]
[1747750904321,68.9,166.03,165.91,5.9933]
[1747750905023,6.0227,165.99,165.96,6.0234]
[1747750905425,0.0418202,165.99,165.96,0.038057]
[1747750906126,6.0233,165.98,165.96,0.038057]
[1747750906324,0.0418202,165.99,165.96,0.038057]
[1747750906722,6.023,165.98,165.96,0.038057]
[1747750907226,0.0418202,165.99,165.98,6.023]
[1747750908033,6.0644202,165.99,165.97,6.0232]
[1747750908327,0.0418202,165.99,165.96,0.038057]
[1747750909319,0.0418202,165.99,165.97,6.0234]
[1747750909522,0.0418202,165.99,165.96,0.038057]
[1747750909815,6.0647202,165.99,165.96,6.061457]
[1747750910020,0.0418202,165.99,165.96,0.038057]
[1747750910526,6.0646202,165.99,165.96,0.038057]
[1747750910722,0.0418202,165.99,165.96,0.038057]
[1747750910924,6.0232,165.98,165.96,0.038057]
[1747750911527,0.0418202,165.99,165.96,0.038057]
[1747750911727,6.0234,165.97,165.96,0.038057]
[1747750914732,12.25225868,165.99,165.9,6.0259]
[1747750914932,70.924,165.98,165.9,6.0259]
[1747750915333,6.0249,165.93,165.9,6.0259]
[1747750915626,6.06909626,165.93,165.9,6.06851115]
[1747750915826,6.0252,165.92,165.9,6.06851115]
[1747750916035,0.04419626,165.93,165.9,0.04261115]
[1747750916928,6.0262,165.9,165.84,0.99508933]
[1747750917131,68.92,165.9,165.84,0.99508933]
[1747750917532,68.92,165.9,165.82,10.13043848]
[1747750917929,0.04383506,165.88,165.84,0.04142036]
[1747750919636,0.04383506,165.88,165.87,6.027]
[1747750923238,74.9643,165.95,165.92,6.025]
[1747750923648,68.94,165.95,165.85,10.13043848]
[1747750923942,6.0248,165.93,165.85,10.13043848]
[1747750924140,68.94,165.95,165.85,10.13043848]
[1747750924334,0.03814391,165.92,165.88,0.04314734]
[1747750924843,0.03814391,165.92,165.91,6.0255]
[1747750925832,5.58703568,166.0,165.88,0.04314734]
[1747750926029,11.12897644,166.04,165.98,10.11783523]
[1747750926233,14.83863526,166.08,166.01,10.11783523]
[1747750926429,11.18248928,166.05,166.04,6.0208]
[1747750926629,4.86628928,166.05,166.04,6.0208]
[1747750930347,0.04398683,166.06,166.04,6.0208]
[1747750931344,0.04398683,166.06,166.03,0.04480344]
[1747750931939,6.0208,166.04,166.03,0.04480344]
[1747750933749,68.84398683,166.06,165.95,68.8]
[1747750933947,84.98104266,166.06,165.9,1.9834]
[1747750934154,16.18104266,166.02,165.9,1.9834]
[1747750934350,74.7194,166.01,165.92,6.0249]
[1747750934551,74.7194,166.01,165.9,1.9834]
[1747750934754,0.04199184,165.97,165.94,0.03951406]
[1747750935451,0.04199184,165.97,165.96,6.0237]
[1747750937853,0.04199184,165.97,165.95,6.024]
[1747750938254,0.04199184,165.97,165.94,68.83951406]
[1747750939548,0.04199184,165.97,165.96,6.0237]
[1747750940354,0.04199184,165.97,165.94,0.03951406]
[1747750940756,6.06569184,165.97,165.94,0.03951406]
[1747750940948,0.04199184,165.97,165.94,0.03951406]
[1747750941255,6.06539184,165.97,165.94,0.03951406]
[1747750941951,0.04199184,165.97,165.94,0.03951406]
[1747750942454,0.04199184,165.97,165.96,6.0237]
[1747750945355,0.04199184,165.97,165.96,74.8237]
[1747750946256,2.0226,166.06,165.96,68.8]
[1747750946651,6.0209,166.04,165.96,68.8]
[1747750947255,0.0430985,166.02,166.01,6.0216]
[1747750948047,0.0430985,166.02,166.01,74.8216]
[1747750948667,68.8,166.09,166.05,6.0202]
[1747750948853,2.0312,166.11,166.01,68.8]
[1747750949256,3.9781,166.13,166.01,84.98104266]
[1747750949456,68.8,166.15,166.02,2.0773]
[1747750949656,6.0181,166.12,166.07,0.04228967]
[1747750949858,68.8,166.15,166.07,0.04228967]
[1747750950256,6.0185,166.11,166.07,0.04228967]
[1747750950455,6.0185,166.11,166.07,6.06178967]
[1747750950659,68.8,166.15,166.07,6.06178967]
[1747750950857,68.8,166.15,166.07,0.04228967]
[1747750951558,6.0194,166.08,166.07,0.04228967]
[1747750955264,7.966,166.1,166.07,0.04228967]
[1747750955463,1.947,166.1,166.07,0.04228967]
[1747750955668,68.78,166.11,166.07,0.04228967]
[1747750955968,6.0186,166.11,166.07,0.04228967]
[1747750956363,68.78,166.15,166.07,0.04228967]
[1747750956563,68.78,166.15,166.08,6.0193]
[1747750957066,68.78,166.15,166.07,0.04228967]
[1747750957263,6.0177,166.13,166.07,0.04228967]
[1747750957472,68.78,166.15,166.07,0.04228967]
[1747750958070,6.0178,166.13,166.07,0.04228967]
[1747750958269,68.76,166.19,166.08,68.76]
[1747750958569,68.76,166.19,166.12,0.04504264]
[1747750958873,6.0175,166.13,166.12,0.04504264]
[1747750959168,68.76,166.19,166.12,0.04504264]
[1747750959371,6.0174,166.14,166.12,0.04504264]
[1747750959757,6.0175,166.13,166.12,0.04504264]
[1747750961370,6.0173,166.14,166.12,0.04504264]
[1747750961970,6.0175,166.13,166.12,0.04504264]
[1747750962269,68.76,166.19,166.12,0.04504264]
[1747750962669,6.0174,166.14,166.12,0.04504264]
[1747750962970,68.76,166.19,166.12,0.04504264]
[1747750966076,6.0175,166.13,166.12,0.04504264]
[1747750966574,6.0171,166.15,166.12,6.06264264]
[1747750966774,68.64,166.19,166.12,0.04504264]
[1747750967179,6.0161,166.17,166.13,6.0173]
[1747750967476,68.64,166.19,166.12,0.04504264]
[1747750967880,74.6556,166.19,166.12,0.04504264]
[1747750968379,6.0157,166.18,166.15,6.0167]
[1747750968674,68.64,166.19,166.15,0.04130758]
[1747750969478,6.0163,166.17,166.15,0.04130758]
[1747750970279,6.0159,166.18,166.15,0.04130758]
[1747750970777,6.0159,166.18,166.15,6.05810758]
[1747750970972,3.9712,166.21,166.15,0.04130758]
[1747750971478,3.9712,166.21,166.17,6.0158]
[1747750971677,3.9712,166.21,166.15,0.04130758]
[1747750971879,3.9712,166.21,166.16,6.0164]
[1747750972271,6.0156,166.19,166.16,6.0164]
[1747750973179,6.0156,166.19,166.15,6.05800758]
[1747750973375,6.0156,166.19,166.15,0.04130758]
[1747750973683,3.9712,166.21,166.17,6.0159]
[1747750973871,3.9712,166.21,166.15,0.04130758]
[1747750974072,6.0157,166.19,166.15,0.04130758]
[1747750974269,3.9712,166.21,166.15,0.04130758]
[1747750974785,10.10222595,166.2,166.15,0.04130758]
[1747750975080,10.10222595,166.2,166.07,10.10222595]
[1747750975081,68.65983715,166.19,166.07,10.10222595]
[1747750975281,70.6233,166.19,166.08,68.62]
[1747750975475,10.10222595,166.17,166.08,68.62]
[1747750975677,86.803324,166.19,166.08,68.62]
[1747750975982,86.803324,166.19,166.12,0.04369385]
[1747750975983,0.04371559,166.15,166.12,0.04369385]
[1747750976179,6.0176,166.13,166.12,0.04369385]
[1747750978282,68.66371559,166.15,166.12,0.04369385]
[1747750979078,0.04371559,166.15,166.12,0.04369385]
[1747750979380,0.04371559,166.15,166.13,6.0176]
[1747750979580,0.04371559,166.15,166.12,0.04369385]
[1747750980184,6.06051559,166.15,166.12,0.04369385]
[1747750981084,6.06051559,166.15,166.12,6.06149385]
[1747750981284,6.06051559,166.15,166.12,0.04369385]
[1747750981584,0.04371559,166.15,166.12,0.04369385]
[1747750981795,7.43683488,166.26,166.12,6.06369385]
[1747750981978,7.43683488,166.26,166.17,16.14670438]
[1747750982175,7.43683488,166.26,166.18,68.62]
[1747750982386,7.43683488,166.26,166.25,6.0132]
[1747750984391,7.43683488,166.26,166.24,0.044318]
[1747750984791,7.43683488,166.26,166.24,74.657618]
[1747750984994,68.6,166.34,166.24,74.657618]
[1747750985189,68.6,166.34,166.27,0.03908312]
[1747750985893,0.04144138,166.32,166.2,70.5944]
[1747750986088,16.14670438,166.33,166.2,70.5944]
[1747750986593,6.0133,166.25,166.2,76.6092]
[1747750986791,68.6,166.3,166.2,76.6092]
[1747750987100,0.03975771,166.27,166.23,0.03866588]
[1747750987390,6.0136,166.24,166.23,0.03866588]
[1747750987984,6.0133,166.25,166.23,0.03866588]
[1747750989495,6.0136,166.24,166.23,0.03866588]
[1747750990291,6.0132,166.26,166.23,0.03866588]
[1747750990494,0.03975771,166.27,166.23,0.03866588]
[1747750990895,0.03975771,166.27,166.23,6.05236588]
[1747750992202,0.03975771,166.27,166.23,0.03866588]
[1747750992897,0.03975771,166.27,166.24,6.0133]
[1747750993299,0.03975771,166.27,166.23,0.03866588]
[1747750994200,0.03975771,166.27,166.25,6.0131]
[1747750994401,0.03975771,166.27,166.23,0.03866588]
[1747750994806,0.03975771,166.27,166.25,6.0129]
[1747750995099,75.89683488,166.4,166.24,68.46]
[1747750995296,7.43683488,166.4,166.25,75.22310438]
[1747750995691,7.43683488,166.4,166.25,59.0764]
[1747750995896,6.0084,166.39,166.25,59.0764]
[1747750996090,7.43683488,166.4,166.26,12.0257]
[1747750996287,7.43683488,166.4,166.37,6.0088]
[1747750996495,7.43683488,166.4,166.37,6.04675711]
[1747750996995,13.44463488,166.4,166.37,6.04675711]
[1747750997198,13.44463488,166.4,166.37,0.03795711]
[1747750997199,7.43683488,166.4,166.37,0.03795711]
[1747750997400,86.52830438,166.47,166.37,0.03795711]
[1747750997604,86.52830438,166.47,166.4,0.045902]
[1747750998002,6.0077,166.41,166.4,0.045902]
[1747751000102,68.48549787,166.42,166.29,68.44]
[1747751000411,1.9641,166.4,166.29,68.44]
[1747751000599,16.14670438,166.39,166.29,68.44]
[1747751000905,18.13960438,166.39,166.29,74.4515]
[1747751001105,0.04058761,166.36,166.32,0.04146252]
[1747751001304,68.48058761,166.36,166.32,0.04146252]
[1747751001804,6.0103,166.33,166.32,0.04146252]
[1747751002305,68.48058761,166.36,166.25,68.42]
[1747751002505,68.44,166.36,166.25,68.42]
[1747751002801,6.011,166.32,166.25,68.42]
[1747751003006,6.011,166.32,166.29,6.0117]
[1747751003207,0.03825576,166.32,166.29,0.04422935]
[1747751003704,0.03825576,166.32,166.31,6.0108]
[1747751005302,0.03825576,166.32,166.29,0.04422935]
[1747751005802,0.03825576,166.32,166.29,6.05572935]
[1747751005999,0.03825576,166.32,166.29,0.04422935]
[1747751008311,0.03825576,166.32,166.31,6.0111]
[1747751008813,6.04915576,166.32,166.29,0.04422935]
[1747751009909,0.03825576,166.32,166.29,0.04422935]
[1747751010316,0.03825576,166.32,166.3,6.0114]
[1747751011018,0.03825576,166.32,166.29,6.05592935]
[1747751011910,6.04925576,166.32,166.29,6.05592935]
[1747751012614,6.0111,166.31,166.29,0.04422935]
[1747751013011,0.03825576,166.32,166.29,0.04422935]
[1747751013318,0.03825576,166.32,166.3,6.0113]
[1747751013717,0.03825576,166.32,166.29,0.04422935]
[1747751013918,6.0111,166.31,166.29,0.04422935]
[1747751014218,0.03825576,166.32,166.29,0.04422935]
[1747751014421,6.0111,166.31,166.29,0.04422935]
[1747751014617,0.03825576,166.32,166.29,0.04422935]
[1747751015619,0.03825576,166.32,166.3,6.0112]
[1747751016420,6.04895576,166.32,166.29,6.05582935]
[1747751016609,6.04895576,166.32,166.29,0.04422935]
[1747751016814,0.03825576,166.32,166.29,0.04422935]
[1747751018824,6.0114,166.31,166.29,0.04422935]
[1747751020823,0.03825576,166.32,166.29,0.04422935]
[1747751021413,6.0114,166.3,166.29,0.04422935]
[1747751023025,6.0112,166.31,166.29,0.04422935]
[1747751023429,6.0114,166.3,166.29,0.04422935]
[1747751024319,6.0126,166.27,166.24,6.0136]
[1747751024829,4.0502,166.31,166.23,68.3]
[1747751025427,0.04420986,166.29,166.25,0.0432018]
[1747751025629,6.05620986,166.29,166.26,6.0129]
[1747751025830,0.04420986,166.29,166.25,0.0432018]
[1747751026627,0.04420986,166.29,166.27,6.0123]
[1747751027229,6.05600986,166.29,166.27,6.0123]
[1747751027827,0.04420986,166.29,166.27,6.0123]
[1747751028030,0.04420986,166.29,166.28,6.0122]
[1747751033334,0.04420986,166.29,166.27,74.3324]
[1747751033532,0.04420986,166.29,166.27,68.32]
[1747751034034,70.283,166.37,166.27,68.32]
[1747751034526,6.01,166.34,166.27,68.32]
[1747751034833,68.32,166.37,166.27,78.40949628]
[1747751035033,0.04410096,166.34,166.3,0.04439551]
[1747751035525,0.04410096,166.34,166.31,68.32]
[1747751036830,0.04410096,166.34,166.32,6.0105]
[1747751037327,0.04410096,166.34,166.31,68.32]
[1747751037933,0.04410096,166.34,166.3,0.04439551]
[1747751038530,6.0106,166.33,166.3,0.04439551]
[1747751038730,0.04410096,166.34,166.3,0.04439551]
[1747751039124,6.0111,166.31,166.3,0.04439551]
[1747751040633,70.2181,166.33,166.25,69.29508933]
[1747751040833,1.9019,166.32,166.25,69.29508933]
[1747751041037,6.0127,166.27,166.25,0.99508933]
[1747751041429,0.04634606,166.28,166.24,0.04561561]
[1747751041632,6.0125,166.27,166.24,0.04561561]
[1747751042139,0.04634606,166.28,166.24,0.04561561]
[1747751042337,7.43683488,166.35,166.25,78.40949628]
[1747751042539,7.43683488,166.35,166.29,10.08949628]
[1747751042731,7.43683488,166.35,166.26,2.0692]
[1747751042929,7.43683488,166.35,166.27,4.0632]
[1747751043124,7.43683488,166.35,166.27,1.9995]
[1747751043429,0.04193717,166.33,166.29,0.04116265]
[1747751043631,0.04193717,166.33,166.3,6.0113]
[1747751044236,6.05233717,166.33,166.3,6.0113]
[1747751044541,0.04193717,166.33,166.3,6.0113]
[1747751045332,0.04193717,166.33,166.29,0.04116265]
[1747751046034,6.05253717,166.33,166.29,0.04116265]
[1747751046438,6.05253717,166.33,166.3,6.0112]
[1747751047429,0.04193717,166.33,166.3,6.0112]
[1747751048139,6.05253717,166.33,166.3,6.0112]
[1747751048843,0.04193717,166.33,166.29,0.04116265]
[1747751049336,1.94683717,166.33,166.29,0.04116265]
[1747751049837,68.3,166.32,166.29,0.04116265]
[1747751050043,68.3,166.32,166.3,6.0112]
[1747751051944,74.3108,166.32,166.29,6.05276265]
[1747751052745,68.3,166.32,166.3,6.0112]
[1747751052942,68.3,166.32,166.29,0.04116265]
[1747751053243,6.05233717,166.33,166.29,0.04116265]
[1747751053446,0.04193717,166.33,166.31,6.0111]
[1747751053945,6.05233717,166.33,166.3,6.0113]
[1747751054143,0.04193717,166.33,166.29,0.04116265]
[1747751054543,0.04193717,166.33,166.31,6.011]
[1747751055546,6.05233717,166.33,166.3,6.0113]
[1747751055743,0.04193717,166.33,166.29,0.04116265]
[1747751056043,0.04193717,166.33,166.32,6.0107]
[1747751057041,0.04193717,166.33,166.31,6.0109]
[1747751057546,0.04193717,166.33,166.29,0.04116265]
[1747751058047,0.04193717,166.33,166.31,6.0108]
[1747751058345,0.04193717,166.33,166.29,0.04116265]
[1747751058645,0.04193717,166.33,166.32,6.0107]
[1747751060443,0.04193717,166.33,166.29,0.04116265]
[1747751061038,0.04193717,166.33,166.32,6.0107]
[1747751062150,0.04193717,166.33,166.29,0.04116265]
[1747751062351,68.24193717,166.33,166.29,0.04116265]
[1747751062551,2.0943,166.32,166.29,0.04116265]
[1747751062751,6.0114,166.3,166.29,0.04116265]
[1747751063152,3.9873,166.31,166.25,0.99508933]
[1747751063748,16.15949115,166.3,166.25,0.99508933]
[1747751063942,68.2,166.29,166.23,1.32793615]
[1747751064143,0.04119258,166.28,166.19,0.99676056]
[1747751064348,0.04190486,166.25,166.22,0.04373206]
[1747751064552,6.0151,166.2,166.19,0.99676056]
[1747751064842,74.2351,166.2,166.19,0.99676056]
[1747751065046,6.0158,166.18,166.17,1.32793615]
[1747751065851,0.04346148,166.19,166.15,1.9594095]
[1747751065852,6.0165,166.16,166.15,1.9594095]
[1747751066057,74.2365,166.16,166.15,1.9594095]
[1747751066551,68.22,166.16,166.11,2.62464063]
[1747751067051,0.04184637,166.15,166.12,0.0444825]
[1747751067251,6.0176,166.13,166.12,0.0444825]
[1747751068552,0.04184637,166.15,166.12,0.0444825]
[1747751069159,0.04184637,166.15,166.12,6.0621825]
[1747751069861,0.04184637,166.15,166.13,6.0174]
[1747751070059,0.04184637,166.15,166.12,0.0444825]
[1747751070261,0.04184637,166.15,166.13,6.0173]
[1747751070563,0.04184637,166.15,166.12,0.0444825]
[1747751070962,68.28184637,166.15,166.12,0.0444825]
[1747751071765,6.0176,166.13,166.12,0.0444825]
[1747751072064,68.28184637,166.15,166.12,0.0444825]
[1747751072458,6.0176,166.14,166.12,0.0444825]
[1747751073161,68.28184637,166.15,166.12,0.0444825]
[1747751073669,6.0175,166.14,166.12,0.0444825]
[1747751074865,74.29874637,166.15,166.12,0.0444825]
[1747751075063,68.28184637,166.15,166.12,0.0444825]
[1747751075262,2.1027,166.14,166.12,0.0444825]
[1747751075761,0.04184637,166.15,166.12,0.0444825]
[1747751075967,68.26,166.14,166.12,0.0444825]
[1747751076165,0.04184637,166.15,166.12,0.0444825]
[1747751077067,0.04184637,166.15,166.14,6.0172]
[1747751080069,0.04184637,166.15,166.12,0.0444825]
[1747751080968,0.04184637,166.15,166.12,6.0621825]
[1747751081177,0.04184637,166.15,166.12,0.0444825]
[1747751081558,0.04184637,166.15,166.14,6.0172]
[1747751082163,74.2751,166.2,166.17,6.016]
[1747751082365,68.26,166.2,166.17,6.016]
[1747751082868,6.0154,166.19,166.16,6.0162]
[1747751083169,0.0446108,166.19,166.16,0.04419055]
[1747751083371,6.016,166.18,166.16,0.04419055]
[1747751083560,0.0446108,166.19,166.16,0.04419055]
[1747751085072,6.0602108,166.19,166.16,6.06069055]
[1747751085272,0.0446108,166.19,166.16,0.04419055]
[1747751085774,68.2246108,166.19,166.18,6.0158]
[1747751086172,0.0446108,166.19,166.16,0.04419055]
[1747751086869,0.0446108,166.19,166.16,6.06059055]
[1747751087075,0.0446108,166.19,166.16,0.04419055]
[1747751088176,6.016,166.18,166.16,0.04419055]
[1747751088480,0.0446108,166.19,166.16,0.04419055]
[1747751088773,6.0602108,166.19,166.16,6.06059055]
[1747751089577,0.0446108,166.19,166.16,0.04419055]
[1747751090078,0.0446108,166.19,166.17,6.016]
[1747751090376,0.0446108,166.19,166.16,0.04419055]
[1747751091670,68.2046108,166.19,166.16,6.06059055]
[1747751092079,74.2202108,166.19,166.16,6.06059055]
[1747751092575,68.2046108,166.19,166.17,6.0161]
[1747751093082,0.0446108,166.19,166.16,6.06059055]
[1747751093281,68.2046108,166.19,166.16,0.04419055]
[1747751094284,74.2202108,166.19,166.16,6.06049055]
[1747751094486,74.2202108,166.19,166.16,0.04419055]
[1747751095086,6.0158,166.18,166.16,0.04419055]
[1747751095273,68.2046108,166.19,166.16,0.04419055]
[1747751097083,74.2202108,166.19,166.16,6.06049055]
[1747751098680,6.0161,166.17,166.16,0.04419055]
[1747751099881,6.016,166.18,166.16,0.04419055]
[1747751100487,6.0161,166.17,166.16,0.04419055]
[1747751104988,6.0159,166.18,166.16,0.04419055]